[Event "Titled Tuesday Blitz July 26 Late 2022"]
[White "Mogranzini, Roberto"]
[Black "Kovacevic, Radmila"]
[WhiteFideId "810894"]
[BlackFideId "933171"]
[WhiteElo "2469"]
[BlackElo "2157"]
[Result "0-1"]
[Round "01"]
[TimeControl "180+1"]
[Date "2022.07.27"]
[WhiteClock "0:00:24"]
[BlackClock "0:00:21"]

1. e4 {[%clk 0:02:58]}  e5 {[%clk 0:02:57]} 2. Nf3 {[%clk 0:02:55]}  d5 {[%clk 0:02:57]} 3. d3 {[%clk 0:02:55]}  dxe4 {[%clk 0:02:57]} 4. dxe4 {[%clk 0:02:56]}  Qxd1+ {[%clk 0:02:57]} 5. Kxd1 {[%clk 0:02:56]}  Bg4 {[%clk 0:02:56]} 6. Be2 {[%clk 0:02:56]}  Nc6 {[%clk 0:02:56]} 7. Nbd2 {[%clk 0:02:53]}  O-O-O {[%clk 0:02:50]} 8. Ng5 {[%clk 0:02:52]}  Bxe2+ {[%clk 0:02:47]} 9. Kxe2 {[%clk 0:02:53]}  Nd4+ {[%clk 0:02:44]} 10. Kd1 {[%clk 0:02:53]}  Nh6 {[%clk 0:02:42]} 11. c3 {[%clk 0:02:53]}  Nc6 {[%clk 0:02:21]} 12. f3 {[%clk 0:02:53]}  Be7 {[%clk 0:02:17]} 13. Nh3 {[%clk 0:02:50]}  g5 {[%clk 0:02:04]} 14. Nf2 {[%clk 0:02:42]}  Rhg8 {[%clk 0:01:55]} 15. h3 {[%clk 0:02:39]}  f6 {[%clk 0:01:52]} 16. Ke2 {[%clk 0:02:39]}  Bc5 {[%clk 0:01:44]} 17. Nd3 {[%clk 0:02:38]}  Be7 {[%clk 0:01:34]} 18. Nc4 {[%clk 0:02:33]}  Nf7 {[%clk 0:01:27]} 19. g4 {[%clk 0:02:25]}  Rd7 {[%clk 0:01:20]} 20. h4 {[%clk 0:02:20]}  Rgd8 {[%clk 0:01:16]} 21. Nf2 {[%clk 0:02:19]}  h6 {[%clk 0:01:11]} 22. hxg5 {[%clk 0:02:16]}  hxg5 {[%clk 0:01:12]} 23. a4 {[%clk 0:02:11]}  Nd6 {[%clk 0:01:08]} 24. Ne3 {[%clk 0:02:10]}  a5 {[%clk 0:01:05]} 25. Nd5 {[%clk 0:02:06]}  Ne8 {[%clk 0:00:51]} 26. Be3 {[%clk 0:02:04]}  b6 {[%clk 0:00:49]} 27. Rh6 {[%clk 0:01:57]}  Kb7 {[%clk 0:00:46]} 28. Rah1 {[%clk 0:01:56]}  Bf8 {[%clk 0:00:30]} 29. Rh7 {[%clk 0:01:50]}  Bg7 {[%clk 0:00:24]} 30. R1h2 {[%clk 0:01:39]}  Ne7 {[%clk 0:00:24]} 31. Nxe7 {[%clk 0:01:35]}  Rxe7 {[%clk 0:00:25]} 32. Nh1 {[%clk 0:01:35]}  Rdd7 {[%clk 0:00:24]} 33. Ng3 {[%clk 0:01:34]}  Bf8 {[%clk 0:00:22]} 34. Rh8 {[%clk 0:01:31]}  Rf7 {[%clk 0:00:21]} 35. Rg8 {[%clk 0:01:08]}  Nd6 {[%clk 0:00:21]} 36. Rhh8 {[%clk 0:00:57]}  Be7 {[%clk 0:00:21]} 37. Bc1 {[%clk 0:00:51]}  Nc4 {[%clk 0:00:20]} 38. b3 {[%clk 0:00:47]}  Nd6 {[%clk 0:00:19]} 39. Ba3 {[%clk 0:00:44]}  c5 {[%clk 0:00:19]} 40. c4 {[%clk 0:00:42]}  Kc7 {[%clk 0:00:16]} 41. Bc1 {[%clk 0:00:42]}  Bd8 {[%clk 0:00:16]} 42. Be3 {[%clk 0:00:41]}  Rg7 {[%clk 0:00:16]} 43. Rxg7 {[%clk 0:00:39]}  Rxg7 {[%clk 0:00:17]} 44. Nh5 {[%clk 0:00:38]}  Rf7 {[%clk 0:00:17]} 45. Ng3 {[%clk 0:00:35]}  Kd7 {[%clk 0:00:17]} 46. Bd2 {[%clk 0:00:33]}  Kc7 {[%clk 0:00:18]} 47. Nf1 {[%clk 0:00:34]}  Kd7 {[%clk 0:00:18]} 48. Ne3 {[%clk 0:00:34]}  Ne8 {[%clk 0:00:17]} 49. Nd5 {[%clk 0:00:33]}  Nd6 {[%clk 0:00:17]} 50. Kd3 {[%clk 0:00:33]}  Ne8 {[%clk 0:00:17]} 51. Bc3 {[%clk 0:00:28]}  Nd6 {[%clk 0:00:17]} 52. Bd2 {[%clk 0:00:24]}  Ne8 {[%clk 0:00:17]} 53. Nc3 {[%clk 0:00:24]}  Nc7 {[%clk 0:00:17]} 54. Nb5 {[%clk 0:00:23]}  Nxb5 {[%clk 0:00:17]} 55. cxb5 {[%clk 0:00:24]}  Bc7 {[%clk 0:00:17]} 56. Kc4 {[%clk 0:00:24]}  Kd6 {[%clk 0:00:17]} 57. Bc3 {[%clk 0:00:22]}  Re7 {[%clk 0:00:16]} 58. Rf8 {[%clk 0:00:21]}  Re6 {[%clk 0:00:17]} 59. Rf7 {[%clk 0:00:21]}  Bd8 {[%clk 0:00:16]} 60. Bd2 {[%clk 0:00:20]}  Be7 {[%clk 0:00:17]} 61. Rh7 {[%clk 0:00:19]}  Bd8 {[%clk 0:00:17]} 62. Rh8 {[%clk 0:00:19]}  Bc7 {[%clk 0:00:17]} 63. Rg8 {[%clk 0:00:18]}  Kd7 {[%clk 0:00:17]} 64. Kd5 {[%clk 0:00:18]}  Rd6+ {[%clk 0:00:17]} 65. Kc4 {[%clk 0:00:19]}  Rd4+ {[%clk 0:00:17]} 66. Kc3 {[%clk 0:00:18]}  Rd6 {[%clk 0:00:17]} 67. Rg7+ {[%clk 0:00:18]}  Kc8 {[%clk 0:00:17]} 68. Be3 {[%clk 0:00:19]}  Rd7 {[%clk 0:00:17]} 69. Rg8+ {[%clk 0:00:19]}  Kb7 {[%clk 0:00:18]} 70. Rf8 {[%clk 0:00:19]}  Bd8 {[%clk 0:00:16]} 71. Bd2 {[%clk 0:00:18]}  Kc7 {[%clk 0:00:17]} 72. Be3 {[%clk 0:00:19]}  Be7 {[%clk 0:00:17]} 73. Rf7 {[%clk 0:00:19]}  Kd6 {[%clk 0:00:17]} 74. Rh7 {[%clk 0:00:19]}  Ke6 {[%clk 0:00:18]} 75. Rh8 {[%clk 0:00:19]}  Bd6 {[%clk 0:00:18]} 76. Rc8 {[%clk 0:00:19]}  Bc7 {[%clk 0:00:18]} 77. Ra8 {[%clk 0:00:19]}  Re7 {[%clk 0:00:18]} 78. Rg8 {[%clk 0:00:19]}  Rd7 {[%clk 0:00:19]} 79. Re8+ {[%clk 0:00:19]}  Re7 {[%clk 0:00:19]} 80. Rh8 {[%clk 0:00:20]}  Rd7 {[%clk 0:00:20]} 81. Rh1 {[%clk 0:00:21]}  Re7 {[%clk 0:00:20]} 82. Rd1 {[%clk 0:00:21]}  Rd7 {[%clk 0:00:20]} 83. Rd4 {[%clk 0:00:22]}  cxd4+ {[%clk 0:00:20]} 84. Kd3 {[%clk 0:00:22]}  dxe3+ {[%clk 0:00:21]} 85. Kxe3 {[%clk 0:00:23]}  Rd4 {[%clk 0:00:21]} 86. b4 {[%clk 0:00:24]}  Rxb4 {[%clk 0:00:21]} 0-1


[Site "https://www.chess.com"]

[Event "Titled Tuesday Blitz July 26 Late 2022"]
[White "Naroditsky, Daniel"]
[Black "Gracia Alvarez, Gerardo Antonio"]
[WhiteFideId "2026961"]
[BlackFideId "5109124"]
[WhiteElo "2608"]
[BlackElo "2139"]
[Result "1-0"]
[Round "01"]
[TimeControl "180+1"]
[Date "2022.07.26"]
[WhiteClock "0:01:26"]
[BlackClock "0:00:14"]

1. c4 {[%clk 0:02:59]}  e5 {[%clk 0:02:58]} 2. Nc3 {[%clk 0:02:57]}  Nf6 {[%clk 0:02:55]} 3. Nf3 {[%clk 0:02:58]}  Nc6 {[%clk 0:02:55]} 4. e4 {[%clk 0:02:59]}  Bc5 {[%clk 0:02:52]} 5. Nxe5 {[%clk 0:02:59]}  Nxe5 {[%clk 0:02:23]} 6. d4 {[%clk 0:02:58]}  Bb4 {[%clk 0:02:23]} 7. dxe5 {[%clk 0:02:59]}  Nxe4 {[%clk 0:02:24]} 8. Qd4 {[%clk 0:02:59]}  Nxc3 {[%clk 0:02:13]} 9. bxc3 {[%clk 0:03:00]}  Be7 {[%clk 0:02:13]} 10. Bd3 {[%clk 0:02:55]}  d6 {[%clk 0:02:11]} 11. exd6 {[%clk 0:02:49]}  Qxd6 {[%clk 0:02:11]} 12. O-O {[%clk 0:02:47]}  O-O {[%clk 0:02:01]} 13. Re1 {[%clk 0:02:47]}  Rd8 {[%clk 0:01:49]} 14. Bf4 {[%clk 0:02:30]}  Qxd4 {[%clk 0:01:30]} 15. cxd4 {[%clk 0:02:31]}  Rxd4 {[%clk 0:01:20]} 16. Rxe7 {[%clk 0:02:29]}  Be6 {[%clk 0:01:21]} 17. Rd1 {[%clk 0:02:14]}  Rad8 {[%clk 0:00:37]} 18. Be5 {[%clk 0:01:59]}  R4d7 {[%clk 0:00:32]} 19. Rxd7 {[%clk 0:01:57]}  Rxd7 {[%clk 0:00:33]} 20. a3 {[%clk 0:01:37]}  f6 {[%clk 0:00:31]} 21. Bc3 {[%clk 0:01:32]}  Kf8 {[%clk 0:00:25]} 22. c5 {[%clk 0:01:29]}  Rd5 {[%clk 0:00:20]} 23. Be2 {[%clk 0:01:27]}  Rxd1+ {[%clk 0:00:15]} 24. Bxd1 {[%clk 0:01:28]}  Ke7 {[%clk 0:00:15]} 25. f4 {[%clk 0:01:29]}  Kd7 {[%clk 0:00:15]} 26. Bf3 {[%clk 0:01:29]}  b6 {[%clk 0:00:15]} 27. Bd4 {[%clk 0:01:26]}  b5 {[%clk 0:00:14]} 28. c6+ {[%clk 0:01:25]}  Kd6 {[%clk 0:00:14]} 29. Bxa7 {[%clk 0:01:26]} 1-0


[Site "https://www.chess.com"]

[Event "Titled Tuesday Blitz July 26 Late 2022"]
[White "Ovezdurdyyeva, Jemal"]
[Black "Rastbod, Ali"]
[WhiteFideId "14001888"]
[BlackFideId "12567477"]
[WhiteElo "1946"]
[BlackElo "2135"]
[Result "0-1"]
[Round "01"]
[TimeControl "180+1"]
[Date "2022.07.27"]
[WhiteClock "0:00:11"]
[BlackClock "0:00:05"]

1. e4 {[%clk 0:02:59]}  Nc6 {[%clk 0:02:44]} 2. Nf3 {[%clk 0:02:57]}  g6 {[%clk 0:02:42]} 3. d4 {[%clk 0:02:56]}  Bg7 {[%clk 0:02:43]} 4. Be3 {[%clk 0:02:54]}  d6 {[%clk 0:02:42]} 5. Nc3 {[%clk 0:02:54]}  Bg4 {[%clk 0:02:43]} 6. Be2 {[%clk 0:02:52]}  e5 {[%clk 0:02:42]} 7. d5 {[%clk 0:02:49]}  Bxf3 {[%clk 0:02:42]} 8. Bxf3 {[%clk 0:02:42]}  Nd4 {[%clk 0:02:42]} 9. Bg4 {[%clk 0:02:42]}  Nf6 {[%clk 0:02:35]} 10. Bh3 {[%clk 0:02:41]}  O-O {[%clk 0:02:33]} 11. O-O {[%clk 0:02:42]}  Re8 {[%clk 0:02:33]} 12. f3 {[%clk 0:02:41]}  Nh5 {[%clk 0:02:32]} 13. Qd2 {[%clk 0:02:39]}  Nf4 {[%clk 0:02:20]} 14. Bxf4 {[%clk 0:02:35]}  exf4 {[%clk 0:02:21]} 15. Qxf4 {[%clk 0:02:34]}  Nxc2 {[%clk 0:02:22]} 16. Rad1 {[%clk 0:02:29]}  Qf6 {[%clk 0:02:04]} 17. Qxf6 {[%clk 0:02:17]}  Bxf6 {[%clk 0:02:05]} 18. Kf2 {[%clk 0:02:14]}  Bg5 {[%clk 0:01:43]} 19. Rh1 {[%clk 0:01:58]}  a6 {[%clk 0:01:28]} 20. Rd3 {[%clk 0:01:47]}  b5 {[%clk 0:01:10]} 21. g3 {[%clk 0:01:43]}  Bf6 {[%clk 0:00:54]} 22. Rc1 {[%clk 0:01:31]}  Nb4 {[%clk 0:00:53]} 23. Rd2 {[%clk 0:01:23]}  a5 {[%clk 0:00:36]} 24. Nxb5 {[%clk 0:01:20]}  Reb8 {[%clk 0:00:33]} 25. Nxc7 {[%clk 0:01:18]}  Ra7 {[%clk 0:00:33]} 26. a3 {[%clk 0:01:15]}  Na2 {[%clk 0:00:31]} 27. Rc6 {[%clk 0:01:10]}  Bxb2 {[%clk 0:00:27]} 28. Ne8 {[%clk 0:01:05]}  Nc3 {[%clk 0:00:18]} 29. Nxd6 {[%clk 0:00:57]}  Bxa3 {[%clk 0:00:18]} 30. Rxc3 {[%clk 0:00:52]}  Bxd6 {[%clk 0:00:19]} 31. f4 {[%clk 0:00:49]}  a4 {[%clk 0:00:19]} 32. Ra2 {[%clk 0:00:47]}  a3 {[%clk 0:00:19]} 33. e5 {[%clk 0:00:46]}  Bb4 {[%clk 0:00:19]} 34. Rd3 {[%clk 0:00:43]}  Kf8 {[%clk 0:00:19]} 35. d6 {[%clk 0:00:38]}  Ke8 {[%clk 0:00:19]} 36. Bg2 {[%clk 0:00:36]}  Kd8 {[%clk 0:00:19]} 37. Bd5 {[%clk 0:00:36]}  Rc8 {[%clk 0:00:18]} 38. g4 {[%clk 0:00:35]}  Rc3 {[%clk 0:00:17]} 39. Ke2 {[%clk 0:00:32]}  g5 {[%clk 0:00:15]} 40. f5 {[%clk 0:00:31]}  Ra5 {[%clk 0:00:13]} 41. Rd4 {[%clk 0:00:24]}  Bc5 {[%clk 0:00:09]} 42. Rdd2 {[%clk 0:00:20]}  Re3+ {[%clk 0:00:08]} 43. Kd1 {[%clk 0:00:19]}  Bb4 {[%clk 0:00:07]} 44. Rd4 {[%clk 0:00:16]}  Bc3 {[%clk 0:00:07]} 45. e6 {[%clk 0:00:14]}  fxe6 {[%clk 0:00:05]} 46. fxe6 {[%clk 0:00:15]}  Bxd4 {[%clk 0:00:05]} 47. Bc4 {[%clk 0:00:13]}  Rc5 {[%clk 0:00:03]} 48. e7+ {[%clk 0:00:13]}  Kd7 {[%clk 0:00:03]} 49. Bf7 {[%clk 0:00:14]}  Kxd6 {[%clk 0:00:02]} 50. e8=Q {[%clk 0:00:14]}  Rxe8 {[%clk 0:00:03]} 51. Bxe8 {[%clk 0:00:15]}  Bb2 {[%clk 0:00:04]} 52. Ke2 {[%clk 0:00:13]}  Rc3 {[%clk 0:00:04]} 53. Kf2 {[%clk 0:00:11]}  Rh3 {[%clk 0:00:05]} 54. Kg2 {[%clk 0:00:11]}  Re3 {[%clk 0:00:05]} 55. h3 {[%clk 0:00:11]}  Rxe8 {[%clk 0:00:05]} 0-1


[Site "https://www.chess.com"]

[Event "Titled Tuesday Blitz July 26 Late 2022"]
[White "Oye-Stromberg, Alexander"]
[Black "Pakleza, Zbigniew"]
[WhiteFideId "1525999"]
[BlackFideId "1119290"]
[WhiteElo "1958"]
[BlackElo "2467"]
[Result "0-1"]
[Round "01"]
[TimeControl "180+1"]
[Date "2022.07.26"]
[WhiteClock "0:00:07"]
[BlackClock "0:00:16"]

1. d4 {[%clk 0:03:00]}  d6 {[%clk 0:03:00]} 2. e4 {[%clk 0:02:58]}  Nf6 {[%clk 0:02:59]} 3. Nc3 {[%clk 0:02:58]}  c6 {[%clk 0:03:00]} 4. Nf3 {[%clk 0:02:57]}  Bg4 {[%clk 0:02:59]} 5. h3 {[%clk 0:02:57]}  Bh5 {[%clk 0:02:59]} 6. Bd3 {[%clk 0:02:55]}  e6 {[%clk 0:02:59]} 7. O-O {[%clk 0:02:56]}  d5 {[%clk 0:02:58]} 8. e5 {[%clk 0:02:55]}  Nfd7 {[%clk 0:02:58]} 9. Nb1 {[%clk 0:02:52]}  c5 {[%clk 0:02:58]} 10. c3 {[%clk 0:02:53]}  Nc6 {[%clk 0:02:58]} 11. Be3 {[%clk 0:02:47]}  Qb6 {[%clk 0:02:58]} 12. Nbd2 {[%clk 0:02:47]}  Be7 {[%clk 0:02:44]} 13. Rb1 {[%clk 0:02:21]}  Rc8 {[%clk 0:02:36]} 14. b4 {[%clk 0:02:20]}  cxd4 {[%clk 0:02:34]} 15. cxd4 {[%clk 0:02:20]}  O-O {[%clk 0:02:24]} 16. a3 {[%clk 0:02:20]}  Bg6 {[%clk 0:02:11]} 17. Bxg6 {[%clk 0:02:19]}  hxg6 {[%clk 0:02:12]} 18. Qb3 {[%clk 0:01:57]}  Qb5 {[%clk 0:02:05]} 19. Rfc1 {[%clk 0:01:53]}  Nb6 {[%clk 0:02:03]} 20. Rc2 {[%clk 0:00:54]}  a6 {[%clk 0:01:52]} 21. Rbc1 {[%clk 0:00:52]}  Na7 {[%clk 0:01:45]} 22. Bg5 {[%clk 0:00:43]}  f6 {[%clk 0:01:20]} 23. Be3 {[%clk 0:00:31]}  Kf7 {[%clk 0:01:11]} 24. Rc7 {[%clk 0:00:27]}  Qa4 {[%clk 0:01:06]} 25. Qxa4 {[%clk 0:00:19]}  Nxa4 {[%clk 0:01:07]} 26. Nb3 {[%clk 0:00:19]}  Rxc7 {[%clk 0:00:57]} 27. Rxc7 {[%clk 0:00:20]}  Rb8 {[%clk 0:00:57]} 28. Na5 {[%clk 0:00:19]}  Nb5 {[%clk 0:00:54]} 29. Rd7 {[%clk 0:00:09]}  Nb6 {[%clk 0:00:46]} 30. Rxb7 {[%clk 0:00:09]}  Rxb7 {[%clk 0:00:46]} 31. Nxb7 {[%clk 0:00:10]}  Nxa3 {[%clk 0:00:47]} 32. Nc5 {[%clk 0:00:10]}  Bxc5 {[%clk 0:00:41]} 33. dxc5 {[%clk 0:00:07]}  Nbc4 {[%clk 0:00:39]} 34. exf6 {[%clk 0:00:08]}  gxf6 {[%clk 0:00:40]} 35. Nd4 {[%clk 0:00:08]}  e5 {[%clk 0:00:38]} 36. Nc6 {[%clk 0:00:08]}  d4 {[%clk 0:00:35]} 37. Bc1 {[%clk 0:00:09]}  d3 {[%clk 0:00:31]} 38. Bxa3 {[%clk 0:00:03]}  Nxa3 {[%clk 0:00:32]} 39. Kf1 {[%clk 0:00:03]}  Ke6 {[%clk 0:00:26]} 40. Nb8 {[%clk 0:00:03]}  Kd5 {[%clk 0:00:17]} 41. Nxa6 {[%clk 0:00:03]}  Kc4 {[%clk 0:00:17]} 42. c6 {[%clk 0:00:03]}  Nb5 {[%clk 0:00:17]} 43. c7 {[%clk 0:00:04]}  Nxc7 {[%clk 0:00:17]} 44. Nxc7 {[%clk 0:00:04]}  Kc3 {[%clk 0:00:18]} 45. Ke1 {[%clk 0:00:04]}  Kc2 {[%clk 0:00:17]} 46. Nd5 {[%clk 0:00:05]}  d2+ {[%clk 0:00:18]} 47. Ke2 {[%clk 0:00:06]}  d1=Q+ {[%clk 0:00:16]} 48. Ke3 {[%clk 0:00:07]}  Qd3# {[%clk 0:00:16]} 0-1


[Site "https://www.chess.com"]

[Event "Titled Tuesday Blitz July 26 Late 2022"]
[White "Ozates, Tuna"]
[Black "Martinez Alcantara, Jose Eduardo"]
[WhiteFideId "6354521"]
[BlackFideId "3805662"]
[WhiteElo "1887"]
[BlackElo "2703"]
[Result "0-1"]
[Round "01"]
[TimeControl "180+1"]
[Date "2022.07.26"]
[WhiteClock "0:00:03"]
[BlackClock "0:00:09"]

1. e4 {[%clk 0:03:00]}  c5 {[%clk 0:02:58]} 2. Nf3 {[%clk 0:03:01]}  d6 {[%clk 0:02:59]} 3. d4 {[%clk 0:03:00]}  cxd4 {[%clk 0:03:00]} 4. Nxd4 {[%clk 0:03:00]}  a6 {[%clk 0:03:00]} 5. c4 {[%clk 0:02:55]}  e6 {[%clk 0:03:01]} 6. Nc3 {[%clk 0:02:56]}  Nf6 {[%clk 0:03:02]} 7. Be2 {[%clk 0:02:56]}  b6 {[%clk 0:03:02]} 8. O-O {[%clk 0:02:56]}  Bb7 {[%clk 0:03:03]} 9. f3 {[%clk 0:02:57]}  Nbd7 {[%clk 0:03:03]} 10. Be3 {[%clk 0:02:57]}  Be7 {[%clk 0:03:03]} 11. Qd2 {[%clk 0:02:58]}  O-O {[%clk 0:03:04]} 12. Rfc1 {[%clk 0:02:57]}  Qb8 {[%clk 0:03:04]} 13. a4 {[%clk 0:02:58]}  Bd8 {[%clk 0:03:05]} 14. Nb3 {[%clk 0:02:42]}  Bc7 {[%clk 0:02:42]} 15. a5 {[%clk 0:02:41]}  Nc5 {[%clk 0:02:30]} 16. Nxc5 {[%clk 0:02:34]}  dxc5 {[%clk 0:02:31]} 17. g3 {[%clk 0:02:22]}  Rd8 {[%clk 0:02:15]} 18. Qe1 {[%clk 0:02:15]}  Bc6 {[%clk 0:02:16]} 19. axb6 {[%clk 0:02:03]}  Bxb6 {[%clk 0:02:16]} 20. Na4 {[%clk 0:01:53]}  Bxa4 {[%clk 0:02:17]} 21. Rxa4 {[%clk 0:01:54]}  a5 {[%clk 0:02:17]} 22. Qf2 {[%clk 0:01:45]}  Qc7 {[%clk 0:02:15]} 23. Rc3 {[%clk 0:01:44]}  Nd7 {[%clk 0:02:15]} 24. Rb3 {[%clk 0:01:43]}  Ne5 {[%clk 0:02:07]} 25. f4 {[%clk 0:01:42]}  Nc6 {[%clk 0:02:00]} 26. Bxc5 {[%clk 0:01:40]}  Bxc5 {[%clk 0:02:01]} 27. Qxc5 {[%clk 0:01:40]}  Rac8 {[%clk 0:02:01]} 28. Qb6 {[%clk 0:01:32]}  Qe7 {[%clk 0:01:48]} 29. Qe3 {[%clk 0:01:28]}  e5 {[%clk 0:01:41]} 30. Bg4 {[%clk 0:01:24]}  Rb8 {[%clk 0:01:37]} 31. Rb5 {[%clk 0:01:19]}  Rxb5 {[%clk 0:01:19]} 32. cxb5 {[%clk 0:01:20]}  Nd4 {[%clk 0:01:19]} 33. Rxa5 {[%clk 0:01:12]}  Qc5 {[%clk 0:01:20]} 34. Ra1 {[%clk 0:00:58]}  Qxb5 {[%clk 0:01:09]} 35. Rd1 {[%clk 0:00:52]}  g6 {[%clk 0:00:48]} 36. fxe5 {[%clk 0:00:50]}  Qxe5 {[%clk 0:00:49]} 37. b4 {[%clk 0:00:49]}  h5 {[%clk 0:00:49]} 38. Bh3 {[%clk 0:00:32]}  Rd6 {[%clk 0:00:49]} 39. Bf1 {[%clk 0:00:26]}  Nc2 {[%clk 0:00:35]} 40. Qc1 {[%clk 0:00:21]}  Rxd1 {[%clk 0:00:30]} 41. Qxd1 {[%clk 0:00:22]}  Nxb4 {[%clk 0:00:29]} 42. Qf3 {[%clk 0:00:21]}  Nc6 {[%clk 0:00:27]} 43. h3 {[%clk 0:00:20]}  Kg7 {[%clk 0:00:27]} 44. Kg2 {[%clk 0:00:20]}  Qd4 {[%clk 0:00:24]} 45. Be2 {[%clk 0:00:18]}  Ne5 {[%clk 0:00:23]} 46. Qf4 {[%clk 0:00:17]}  Qb2 {[%clk 0:00:24]} 47. Qf2 {[%clk 0:00:16]}  Qb4 {[%clk 0:00:23]} 48. Bf3 {[%clk 0:00:17]}  Qc3 {[%clk 0:00:23]} 49. Qe2 {[%clk 0:00:17]}  Qd4 {[%clk 0:00:21]} 50. Kh2 {[%clk 0:00:15]}  Qd2 {[%clk 0:00:18]} 51. Kg2 {[%clk 0:00:14]}  Qd6 {[%clk 0:00:19]} 52. Kh2 {[%clk 0:00:14]}  h4 {[%clk 0:00:19]} 53. Kg2 {[%clk 0:00:13]}  hxg3 {[%clk 0:00:19]} 54. Kxg3 {[%clk 0:00:11]}  Nd3+ {[%clk 0:00:19]} 55. Kh4 {[%clk 0:00:06]}  Qf4+ {[%clk 0:00:10]} 56. Bg4 {[%clk 0:00:07]}  g5+ {[%clk 0:00:09]} 57. Kh5 {[%clk 0:00:06]}  Qf6 {[%clk 0:00:09]} 58. Bf5 {[%clk 0:00:03]}  Nf4+ {[%clk 0:00:09]} 0-1


[Site "https://www.chess.com"]

[Event "Titled Tuesday Blitz July 26 Late 2022"]
[White "Paravyan, David"]
[Black "Gaisinsky, Adam"]
[WhiteFideId "4194985"]
[BlackFideId "2620561"]
[WhiteElo "2569"]
[BlackElo "1965"]
[Result "1-0"]
[Round "01"]
[TimeControl "180+1"]
[Date "2022.07.26"]
[WhiteClock "0:02:50"]
[BlackClock "0:00:55"]

1. e4 {[%clk 0:03:00]}  e5 {[%clk 0:02:59]} 2. Nf3 {[%clk 0:03:01]}  Nc6 {[%clk 0:02:58]} 3. Nc3 {[%clk 0:03:01]}  Nf6 {[%clk 0:02:58]} 4. d4 {[%clk 0:03:01]}  exd4 {[%clk 0:02:58]} 5. Nxd4 {[%clk 0:03:02]}  Bb4 {[%clk 0:02:58]} 6. Nxc6 {[%clk 0:03:03]}  bxc6 {[%clk 0:02:59]} 7. Bd3 {[%clk 0:03:03]}  d5 {[%clk 0:03:00]} 8. exd5 {[%clk 0:03:04]}  O-O {[%clk 0:03:00]} 9. O-O {[%clk 0:03:05]}  Bg4 {[%clk 0:03:00]} 10. f3 {[%clk 0:03:04]}  Bh5 {[%clk 0:03:00]} 11. Bg5 {[%clk 0:03:05]}  cxd5 {[%clk 0:02:49]} 12. Bxf6 {[%clk 0:03:05]}  Qxf6 {[%clk 0:02:42]} 13. Nxd5 {[%clk 0:03:05]}  Qxb2 {[%clk 0:02:35]} 14. Rb1 {[%clk 0:03:05]}  Bc5+ {[%clk 0:02:27]} 15. Kh1 {[%clk 0:03:05]}  Qxa2 {[%clk 0:02:23]} 16. Rb5 {[%clk 0:03:04]}  Bd6 {[%clk 0:01:55]} 17. Nc3 {[%clk 0:02:56]}  Qa3 {[%clk 0:01:50]} 18. Nb1 {[%clk 0:02:53]}  Bxf3 {[%clk 0:00:57]} 19. Qxf3 {[%clk 0:02:52]}  Qa4 {[%clk 0:00:55]} 20. Nc3 {[%clk 0:02:49]}  Qh4 {[%clk 0:00:55]} 21. Rh5 {[%clk 0:02:50]} 1-0


[Site "https://www.chess.com"]

[Event "Titled Tuesday Blitz July 26 Late 2022"]
[White "Petrovic, Aleksa"]
[Black "Goltsev, Dmitry"]
[WhiteFideId "967629"]
[BlackFideId "24176710"]
[WhiteElo "2185"]
[BlackElo "2258"]
[Result "1-0"]
[Round "01"]
[TimeControl "180+1"]
[Date "2022.07.27"]
[WhiteClock "0:00:09"]
[BlackClock "0:00:08"]

1. e4 {[%clk 0:02:57]}  e6 {[%clk 0:02:57]} 2. d4 {[%clk 0:02:55]}  d5 {[%clk 0:02:58]} 3. Nd2 {[%clk 0:02:55]}  c5 {[%clk 0:02:58]} 4. exd5 {[%clk 0:02:54]}  exd5 {[%clk 0:02:59]} 5. Ngf3 {[%clk 0:02:54]}  Nf6 {[%clk 0:02:57]} 6. Bb5+ {[%clk 0:02:52]}  Nc6 {[%clk 0:02:57]} 7. O-O {[%clk 0:02:49]}  Be7 {[%clk 0:02:53]} 8. dxc5 {[%clk 0:02:48]}  Bxc5 {[%clk 0:02:53]} 9. Re1+ {[%clk 0:02:46]}  Be6 {[%clk 0:02:52]} 10. Nb3 {[%clk 0:02:43]}  Bb6 {[%clk 0:02:48]} 11. Nbd4 {[%clk 0:02:39]}  O-O {[%clk 0:02:48]} 12. Nxe6 {[%clk 0:02:31]}  fxe6 {[%clk 0:02:47]} 13. Rxe6 {[%clk 0:02:32]}  Bxf2+ {[%clk 0:02:47]} 14. Kh1 {[%clk 0:02:15]}  Ne4 {[%clk 0:02:40]} 15. Bd3 {[%clk 0:01:51]}  Bh4 {[%clk 0:02:15]} 16. Be3 {[%clk 0:01:16]}  Nf6 {[%clk 0:01:54]} 17. Nxh4 {[%clk 0:01:11]}  d4 {[%clk 0:00:56]} 18. Bc4 {[%clk 0:01:03]}  Kh8 {[%clk 0:00:54]} 19. Bg5 {[%clk 0:00:51]}  Rc8 {[%clk 0:00:40]} 20. Qd3 {[%clk 0:00:42]}  Nb4 {[%clk 0:00:34]} 21. Ng6+ {[%clk 0:00:32]}  hxg6 {[%clk 0:00:31]} 22. Qh3+ {[%clk 0:00:33]}  Nh7 {[%clk 0:00:28]} 23. Bxd8 {[%clk 0:00:29]}  Rxc4 {[%clk 0:00:24]} 24. Be7 {[%clk 0:00:27]}  Nxc2 {[%clk 0:00:21]} 25. Bxf8 {[%clk 0:00:18]}  Nxa1 {[%clk 0:00:19]} 26. Re1 {[%clk 0:00:16]}  Nc2 {[%clk 0:00:11]} 27. Rc1 {[%clk 0:00:16]}  b5 {[%clk 0:00:08]} 28. Bd6 {[%clk 0:00:13]}  Ne3 {[%clk 0:00:07]} 29. Rxc4 {[%clk 0:00:12]}  Nxc4 {[%clk 0:00:06]} 30. Qc8+ {[%clk 0:00:11]}  Nf8 {[%clk 0:00:05]} 31. Qxf8+ {[%clk 0:00:11]}  Kh7 {[%clk 0:00:06]} 32. Bc5 {[%clk 0:00:11]}  d3 {[%clk 0:00:06]} 33. Qd8 {[%clk 0:00:10]}  d2 {[%clk 0:00:06]} 34. Bb4 {[%clk 0:00:08]}  Nxb2 {[%clk 0:00:04]} 35. Qxd2 {[%clk 0:00:08]}  Nc4 {[%clk 0:00:05]} 36. Qd3 {[%clk 0:00:09]}  a6 {[%clk 0:00:05]} 37. Qh3+ {[%clk 0:00:09]}  Kg8 {[%clk 0:00:06]} 38. Qe6+ {[%clk 0:00:10]}  Kh7 {[%clk 0:00:06]} 39. Qxa6 {[%clk 0:00:11]}  Nb2 {[%clk 0:00:06]} 40. Qxb5 {[%clk 0:00:11]}  Nd1 {[%clk 0:00:07]} 41. Qe2 {[%clk 0:00:10]}  g5 {[%clk 0:00:06]} 42. Qxd1 {[%clk 0:00:10]}  g4 {[%clk 0:00:07]} 43. Qxg4 {[%clk 0:00:10]}  g6 {[%clk 0:00:07]} 44. Bc3 {[%clk 0:00:10]}  g5 {[%clk 0:00:07]} 45. Qh5+ {[%clk 0:00:08]}  Kg8 {[%clk 0:00:07]} 46. Qg6+ {[%clk 0:00:08]}  Kf8 {[%clk 0:00:08]} 47. Qg7+ {[%clk 0:00:08]}  Ke8 {[%clk 0:00:08]} 48. Bf6 {[%clk 0:00:08]}  g4 {[%clk 0:00:08]} 49. Qe7# {[%clk 0:00:09]} 1-0


[Site "https://www.chess.com"]